bitfinex-derivatives/quotes_BTCF0:USTF0_20251103
["timestamp","ask_amount","ask_price","bid_price","bid_amount"]
[1762157993346,0.2217613,107630.0,107620.0,0.17375012]
[1762157993537,0.0825727,107630.0,107620.0,0.20775012]
[1762157994045,0.0825727,107630.0,107620.0,0.18675012]
[1762157994247,0.05947,107630.0,107620.0,0.20775012]
[1762157994942,0.08261788,107630.0,107620.0,0.20775012]
[1762157995445,0.17362012,107630.0,107620.0,0.20775012]
[1762157995647,0.55757078,107630.0,107620.0,0.20775012]
[1762157996739,0.55757123,107630.0,107620.0,0.055]
[1762157998749,0.55757123,107630.0,107620.0,0.021]
[1762157998943,0.05789,107620.0,107610.0,0.15275012]
[1762157999148,0.37893,107620.0,107610.0,0.15275012]
[1762158000650,0.37893,107620.0,107610.0,0.17375012]
[1762158000854,0.85388012,107620.0,107610.0,0.021]
[1762158001038,0.96803024,107620.0,107610.0,0.021]
[1762158001343,0.99100943,107620.0,107590.0,0.54166258]
[1762158001542,0.05789,107600.0,107590.0,0.58026258]
[1762158001741,0.37893,107600.0,107590.0,0.58026258]
[1762158001938,0.72544012,107600.0,107590.0,0.06671246]
[1762158002145,1.20039024,107600.0,107590.0,0.06671246]
[1762158002344,0.05789,107590.0,107580.0,0.42751246]
[1762158002542,0.65105,107590.0,107580.0,0.06671246]
[1762158002742,0.76521277,107590.0,107580.0,0.06671246]
[1762158002942,0.53285277,107590.0,107580.0,0.06671246]
[1762158003352,0.53285277,107590.0,107580.0,0.09771246]
[1762158003752,0.53285277,107590.0,107580.0,0.031]
[1762158004454,0.53285277,107590.0,107580.0,0.052]
[1762158006049,0.05789,107580.0,107570.0,0.06671246]
[1762158006250,0.05789,107570.0,107560.0,0.11061246]
[1762158006646,0.05789,107570.0,107560.0,0.06671246]
[1762158007043,0.76525277,107570.0,107560.0,0.06671246]
[1762158007246,0.05789,107560.0,107550.0,0.08892246]
[1762158007451,0.73977,107560.0,107550.0,0.08892246]
[1762158007752,0.73977,107560.0,107550.0,0.06671246]
[1762158007954,0.73977,107560.0,107550.0,0.11061246]
[1762158008454,0.74077,107560.0,107550.0,0.13161246]
[1762158008855,0.04563,107560.0,107550.0,0.25943523]
[1762158009052,0.36671,107560.0,107550.0,0.27943523]
[1762158009254,0.36671,107560.0,107550.0,0.64023523]
[1762158010049,0.36771,107560.0,107550.0,0.63923523]
[1762158010251,0.38097,107560.0,107550.0,0.57252277]
[1762158010451,0.38097,107560.0,107550.0,0.69760801]
[1762158010848,0.36771,107560.0,107550.0,0.69760801]
[1762158011052,0.36771,107560.0,107550.0,0.78096123]
[1762158011253,0.36771,107560.0,107550.0,0.69760801]
[1762158011653,0.04663,107560.0,107550.0,0.78096123]
[1762158011858,0.36775,107560.0,107550.0,0.78096123]
[1762158012158,0.04663,107560.0,107550.0,0.78096123]
[1762158012458,0.32312,107560.0,107550.0,0.78096123]
[1762158013458,0.36682,107560.0,107550.0,0.78096123]
[1762158013659,0.38057,107560.0,107550.0,0.78096123]
[1762158013960,0.38057,107560.0,107550.0,0.54171322]
[1762158014258,0.38057,107560.0,107550.0,0.52805322]
[1762158015062,0.38057,107560.0,107550.0,0.54169322]
[1762158015258,0.36682,107560.0,107550.0,0.54169322]
[1762158015553,0.36682,107560.0,107550.0,0.16089322]
[1762158015761,0.75137,107560.0,107550.0,0.14725322]
[1762158016765,0.74937,107560.0,107550.0,0.12725322]
[1762158017058,0.74937,107560.0,107550.0,0.06673096]
[1762158017254,0.98861801,107560.0,107550.0,0.06673096]
[1762158017455,0.98961801,107560.0,107550.0,0.06673096]
[1762158017655,0.75037,107560.0,107550.0,0.06673096]
[1762158017859,0.75037,107560.0,107550.0,0.08373096]
[1762158017860,0.75137,107560.0,107550.0,0.08373096]
[1762158018254,0.97281,107560.0,107550.0,0.08573096]
[1762158018558,0.74037,107560.0,107550.0,0.08573096]
[1762158019161,0.97281,107560.0,107550.0,0.08573096]
[1762158019362,1.21205801,107560.0,107550.0,0.019]
[1762158019552,1.21105801,107560.0,107550.0,0.013]
[1762158020259,0.73937,107560.0,107550.0,0.03427]
[1762158020463,0.73937,107560.0,107550.0,0.12255096]
[1762158020764,0.73937,107560.0,107550.0,0.07973096]
[1762158021061,0.97181,107560.0,107550.0,0.07973096]
[1762158021257,0.97181,107560.0,107550.0,0.12255096]
[1762158021258,0.73937,107560.0,107550.0,0.12255096]
[1762158021463,0.73937,107560.0,107550.0,0.10100096]
[1762158021962,0.73941,107560.0,107550.0,0.12255096]
[1762158022563,0.05745,107560.0,107550.0,0.48335096]
[1762158022765,0.02112,107560.0,107550.0,0.49699096]
[1762158023062,0.05745,107570.0,107560.0,0.05646]
[1762158023262,0.37861,107570.0,107560.0,0.12313468]
[1762158023464,0.36486,107570.0,107560.0,0.65650801]
[1762158023656,0.36486,107570.0,107560.0,0.48393468]
[1762158023858,0.0437,107570.0,107560.0,0.41726]
[1762158024056,0.4045,107580.0,107570.0,0.05646]
[1762158024261,0.72566,107580.0,107570.0,0.05646]
[1762158025260,0.72566,107580.0,107570.0,0.13113468]
[1762158025261,0.36486,107580.0,107570.0,0.13113468]
[1762158025460,0.32116,107580.0,107570.0,0.73118269]
[1762158026252,0.37455,107600.0,107590.0,0.02127]
[1762158026253,0.03487,107600.0,107590.0,0.02127]
[1762158026458,0.37858,107600.0,107590.0,0.05606]
[1762158026856,0.73938,107600.0,107590.0,0.0426]
[1762158027062,0.058,107590.0,107580.0,0.10990034]
[1762158027362,0.4188,107590.0,107580.0,0.10990034]
[1762158028068,0.058,107590.0,107580.0,0.10990034]
[1762158028364,0.4298,107590.0,107580.0,0.10990034]
[1762158028566,0.069,107590.0,107580.0,0.10990034]
[1762158028958,0.4298,107590.0,107580.0,0.10990034]
[1762158029653,0.4328,107590.0,107580.0,0.10990034]
[1762158030057,0.4298,107590.0,107580.0,0.10990034]
[1762158030257,0.4318,107590.0,107580.0,0.10990034]
[1762158030663,0.058,107590.0,107580.0,0.10990034]
[1762158030868,0.4308,107590.0,107580.0,0.12490034]
[1762158031167,0.07,107590.0,107580.0,0.12490034]
[1762158031666,0.059,107590.0,107580.0,0.14190034]
[1762158031867,0.4198,107590.0,107580.0,0.14190034]
[1762158032265,0.04526,107590.0,107580.0,0.15536034]
[1762158032462,0.04526,107590.0,107580.0,0.51616034]
[1762158032662,0.059,107590.0,107580.0,0.51616034]
[1762158032858,0.059,107590.0,107580.0,0.07518]
[1762158033063,0.059,107590.0,107580.0,0.12057034]
[1762158033266,0.059,107590.0,107580.0,0.14190034]
[1762158034865,0.059,107590.0,107580.0,0.07518]
[1762158036062,0.4198,107590.0,107580.0,0.032]
[1762158036265,0.059,107590.0,107580.0,0.07518]
[1762158036468,0.04526,107590.0,107580.0,0.08864]
[1762158036768,0.04526,107590.0,107580.0,0.15536034]
[1762158038476,0.001,107590.0,107580.0,0.15536034]
[1762158038662,0.04526,107590.0,107580.0,0.15536034]
[1762158038978,0.04526,107590.0,107580.0,0.51616034]
[1762158039671,0.05897,107590.0,107580.0,0.12057034]
[1762158039871,0.05897,107590.0,107580.0,0.14190034]
[1762158040775,0.05897,107590.0,107580.0,0.15536034]
[1762158040966,0.05897,107590.0,107580.0,0.12057034]
[1762158040967,0.41977,107590.0,107580.0,0.12057034]
[1762158041172,0.41977,107590.0,107580.0,0.05385]
[1762158041473,0.41977,107590.0,107580.0,0.07518]
[1762158042164,0.05897,107590.0,107580.0,0.07518]
[1762158042470,0.05897,107590.0,107580.0,0.08822]
[1762158042672,0.04526,107590.0,107580.0,0.08822]
[1762158044569,0.04526,107590.0,107580.0,0.44902]
[1762158047374,0.04526,107590.0,107580.0,0.51574034]
[1762158048070,0.36634,107590.0,107580.0,0.51574034]
[1762158048272,0.32208,107590.0,107580.0,0.75498835]
[1762158051875,0.36756,107590.0,107580.0,0.15508489]
[1762158052079,0.36756,107590.0,107580.0,0.51588489]
[1762158053577,0.36756,107590.0,107580.0,0.44902]
[1762158054479,0.36756,107590.0,107580.0,0.56315377]
[1762158054880,0.34537,107590.0,107580.0,0.56315377]
[1762158055179,0.36756,107590.0,107580.0,0.56315377]
[1762158055577,0.39137201,107590.0,107580.0,0.56315377]
[1762158056281,0.36756,107590.0,107580.0,0.56315377]
[1762158056780,0.32208,107590.0,107580.0,0.56315377]
[1762158057380,0.36756,107590.0,107580.0,0.56315377]
[1762158057578,0.36756,107590.0,107580.0,0.44902]
[1762158057579,0.39142287,107590.0,107580.0,0.44902]
[1762158057780,0.36756,107590.0,107580.0,0.56315377]
[1762158057973,0.39142285,107590.0,107580.0,0.20235377]
[1762158058179,0.40533285,107590.0,107580.0,0.56315377]
[1762158058987,0.39142285,107590.0,107580.0,0.56315377]
[1762158059185,0.36756,107590.0,107580.0,0.56315377]
[1762158064185,0.38147,107590.0,107580.0,0.55011377]
[1762158064486,0.88016621,107590.0,107580.0,0.032]
[1762158064878,0.04548,107580.0,107570.0,0.13562849]
[1762158065086,0.53436849,107580.0,107570.0,0.15766849]
[1762158065280,0.42019,107580.0,107570.0,0.15766849]
[1762158065479,0.53436849,107580.0,107570.0,0.15766849]
[1762158065679,0.17356849,107580.0,107570.0,0.15766849]
[1762158066089,0.04548,107580.0,107570.0,0.53150849]
[1762158066488,0.69579,107590.0,107580.0,0.02145]
[1762158066688,0.74127,107590.0,107580.0,0.28488698]
[1762158067487,0.74127,107590.0,107580.0,0.17070849]
[1762158068291,0.85544849,107590.0,107580.0,0.15766849]
[1762158068587,0.87915931,107590.0,107580.0,0.02145]
[1762158068791,0.87915931,107590.0,107580.0,0.04349]
[1762158069091,0.87915931,107590.0,107570.0,0.17866849]
[1762158069092,0.05923,107580.0,107570.0,0.17866849]
[1762158069292,0.53420849,107580.0,107570.0,0.17866849]
[1762158069492,0.53420849,107580.0,107570.0,0.15766849]
[1762158070191,0.53420849,107580.0,107560.0,0.22453338]
[1762158070192,0.05939,107570.0,107560.0,0.22453338]
[1762158070488,0.74123,107570.0,107560.0,0.02145]
[1762158070683,0.05923,107560.0,107550.0,0.58533338]
[1762158071484,0.53420849,107560.0,107550.0,0.11035489]
[1762158071685,0.53420849,107560.0,107550.0,0.06686489]
[1762158071892,0.53420849,107560.0,107540.0,0.47804697]
[1762158071893,0.05826,107550.0,107540.0,0.59107186]
[1762158072094,0.3793,107550.0,107540.0,0.59107186]
[1762158072392,0.3793,107550.0,107540.0,0.11609337]
[1762158073097,0.7401,107550.0,107540.0,0.11609337]
[1762158073291,0.88289105,107550.0,107540.0,0.00306848]
[1762158073596,0.89389105,107550.0,107540.0,0.00306848]
[1762158074791,0.05661,107530.0,107520.0,0.11352489]
[1762158074989,0.73849,107530.0,107520.0,0.11352489]
[1762158075892,0.75949,107530.0,107520.0,0.11352489]
[1762158077397,0.75949,107530.0,107520.0,0.11452489]
[1762158078197,0.75949,107530.0,107520.0,0.04766]
[1762158078395,0.06632,107530.0,107520.0,0.63088594]
[1762158078696,0.34212,107530.0,107520.0,0.56402105]
[1762158079001,0.41987,107560.0,107550.0,0.04616]
[1762158079299,0.74099,107560.0,107550.0,0.04616]
[1762158079596,0.38019,107560.0,107550.0,0.41847]
[1762158079802,0.36644,107560.0,107550.0,0.56126105]
[1762158080707,0.34438,107560.0,107550.0,0.56126105]
[1762158080996,0.36644,107560.0,107550.0,0.56226105]
[1762158081400,0.37938,107560.0,107550.0,0.04816]
[1762158081704,0.74018,107560.0,107550.0,0.04716]
[1762158083508,0.37938,107560.0,107550.0,0.04716]
[1762158084598,0.74018,107560.0,107550.0,0.04716]
[1762158085095,0.37938,107560.0,107550.0,0.04716]
[1762158085705,0.74018,107560.0,107550.0,0.04716]
[1762158085905,0.37938,107560.0,107550.0,0.04716]
[1762158086303,0.74018,107560.0,107550.0,0.04716]
[1762158086804,0.74018,107560.0,107550.0,0.001]
[1762158087406,0.74018,107560.0,107550.0,0.02427]
[1762158087606,0.74018,107560.0,107550.0,0.19034105]
[1762158088707,0.74018,107560.0,107550.0,0.04755]
[1762158091304,0.74018,107560.0,107550.0,0.02427]
[1762158091305,0.76360398,107560.0,107550.0,0.02427]
[1762158091703,0.76360398,107560.0,107550.0,0.001]
[1762158092407,0.76360398,107560.0,107550.0,0.04755]
[1762158092804,0.76360398,107560.0,107550.0,0.02427]
[1762158093012,0.76360398,107560.0,107550.0,0.001]
[1762158093711,0.90639503,107560.0,107550.0,0.001]
[1762158094804,0.76360398,107560.0,107550.0,0.001]
[1762158095906,0.90639503,107560.0,107550.0,0.001]
[1762158097309,0.76360398,107560.0,107550.0,0.001]
[1762158097511,0.76360398,107560.0,107550.0,0.02427]
[1762158097712,0.76360398,107560.0,107550.0,0.001]
[1762158098207,0.76360398,107560.0,107550.0,0.04755]
[1762158098904,0.76360398,107560.0,107550.0,0.001]
[1762158099306,0.05165,107530.0,107520.0,0.09044015]
[1762158099607,0.73357,107530.0,107520.0,0.02377]
[1762158100010,0.73357,107530.0,107520.0,0.0005]
[1762158100210,0.87636105,107530.0,107520.0,0.0005]
[1762158100407,0.73357,107530.0,107520.0,0.0005]
[1762158100913,0.74557,107530.0,107520.0,0.0015]
[1762158101505,0.73557,107530.0,107520.0,0.0015]
[1762158101707,0.87836105,107530.0,107520.0,0.0015]
[1762158102207,0.90174029,107530.0,107520.0,0.0015]
[1762158102414,0.05762,107510.0,107500.0,0.04714626]
[1762158102606,0.37878,107510.0,107500.0,0.00317626]
[1762158102914,0.37878,107510.0,107500.0,0.04714626]
[1762158103908,0.39378,107510.0,107500.0,0.04814626]
[1762158105012,0.53657105,107510.0,107500.0,0.00417626]
[1762158105216,0.89737105,107510.0,107500.0,0.00417626]
[1762158105617,0.05762,107490.0,107480.0,0.0005]
[1762158105817,0.37886,107490.0,107480.0,0.0005]
[1762158106217,0.52165105,107490.0,107480.0,0.0005]
[1762158106620,0.52175503,107490.0,107480.0,0.0005]
[1762158106815,0.38796398,107490.0,107480.0,0.0005]
[1762158107718,0.40196398,107490.0,107480.0,0.0015]
[1762158108719,0.39296398,107490.0,107480.0,0.0015]
[1762158108919,0.40396398,107490.0,107480.0,0.0015]
[1762158110015,0.90755503,107490.0,107480.0,0.0015]
[1762158110217,0.05762,107470.0,107460.0,0.40784077]
[1762158110419,0.05762,107470.0,107460.0,0.56432182]
[1762158110420,0.04496166,107470.0,107460.0,0.56432182]
[1762158110719,0.04496166,107470.0,107460.0,0.92512182]
[1762158110720,0.36656166,107470.0,107460.0,0.92512182]
[1762158111618,0.32169166,107470.0,107460.0,1.01819492]
[1762158112218,0.35170166,107470.0,107460.0,0.78333077]
[1762158112406,0.37356166,107470.0,107460.0,0.92612182]
[1762158112607,0.32869166,107470.0,107460.0,0.78333077]
[1762158112814,0.32869166,107470.0,107460.0,0.92612182]
[1762158113323,0.37656166,107470.0,107460.0,0.78333077]
[1762158113620,0.37656166,107470.0,107460.0,0.92612182]
[1762158113621,0.38931166,107470.0,107460.0,0.92612182]
[1762158114421,0.38931166,107470.0,107460.0,0.91243182]
[1762158114628,0.38931166,107470.0,107460.0,0.76964077]
[1762158115422,0.38931166,107470.0,107460.0,0.78333077]
[1762158115626,0.38931166,107470.0,107460.0,0.92612182]
[1762158116121,0.38931166,107470.0,107460.0,0.91243182]
[1762158117319,0.37656166,107470.0,107460.0,0.78333077]
[1762158117621,0.37656166,107470.0,107460.0,0.92612182]
[1762158117820,0.33169166,107470.0,107460.0,0.92612182]
[1762158118324,0.35470166,107470.0,107460.0,0.78333077]
[1762158118622,0.37656166,107470.0,107460.0,1.01919492]
[1762158120323,0.01009166,107470.0,107460.0,1.01919492]
[1762158120522,0.01009166,107470.0,107460.0,1.08586507]
[1762158121226,0.01009166,107470.0,107460.0,0.99279197]
[1762158121524,0.01009166,107470.0,107460.0,1.08586507]
[1762158121724,0.05496166,107470.0,107460.0,0.92612182]
[1762158121918,0.06771166,107470.0,107460.0,0.76964077]
[1762158127227,0.06771166,107470.0,107460.0,0.02561077]
[1762158127819,0.06771166,107470.0,107460.0,0.00407077]
[1762158128020,0.42851166,107470.0,107460.0,0.00407077]
[1762158128223,0.42851166,107470.0,107460.0,0.02561077]
[1762158128822,0.42851166,107470.0,107460.0,0.00407077]
[1762158129328,0.42851166,107470.0,107460.0,0.11471092]
[1762158129529,0.42851166,107470.0,107460.0,0.04804077]
[1762158129833,0.42851166,107470.0,107460.0,0.00407077]
[1762158130122,0.66819281,107470.0,107460.0,0.00407077]
[1762158130723,0.42851166,107470.0,107460.0,0.00407077]
[1762158130922,0.66819281,107470.0,107460.0,0.00407077]
[1762158131122,0.42851166,107470.0,107460.0,0.04804077]
[1762158131318,0.42551166,107470.0,107460.0,0.02561077]
[1762158131522,0.42551166,107470.0,107460.0,0.02576077]
[1762158131523,0.42451166,107470.0,107460.0,0.02576077]
[1762158131723,0.42451166,107470.0,107460.0,0.00307077]
[1762158131724,0.42551166,107470.0,107460.0,0.00307077]
[1762158132531,0.66519281,107470.0,107460.0,0.00307077]
[1762158132728,0.66519281,107470.0,107460.0,0.01907077]
[1762158133132,0.66419281,107470.0,107460.0,0.01907077]
[1762158133432,0.66719281,107470.0,107460.0,0.01907077]
[1762158133733,0.42451166,107470.0,107460.0,0.01907077]
[1762158134030,0.42751166,107470.0,107460.0,0.01907077]
[1762158134524,0.42351166,107470.0,107460.0,0.04607077]
[1762158134731,0.42351166,107470.0,107460.0,0.06876077]
[1762158135124,0.42151166,107470.0,107460.0,0.02576077]
[1762158135331,0.42351166,107470.0,107460.0,0.06876077]
[1762158135833,0.42351166,107470.0,107460.0,0.04607077]
[1762158136130,0.42351166,107470.0,107460.0,0.09114077]
[1762158136334,0.74511166,107470.0,107460.0,0.09114077]
[1762158136834,0.74511166,107470.0,107460.0,0.04607077]
[1762158137134,0.74311166,107470.0,107460.0,0.00307077]
[1762158137340,0.74511166,107470.0,107460.0,0.06876077]
[1762158137535,0.74511166,107470.0,107460.0,0.09114077]
[1762158138130,0.74311166,107470.0,107460.0,0.06514077]
[1762158138432,0.74311166,107470.0,107460.0,0.02007077]
[1762158138635,0.74311166,107470.0,107460.0,0.06514077]
[1762158138829,0.38231166,107470.0,107460.0,0.06514077]
[1762158139230,0.38231166,107470.0,107460.0,0.13181092]
[1762158139534,0.38231166,107470.0,107460.0,0.12881092]
[1762158139733,0.37931166,107470.0,107460.0,0.12881092]
[1762158140032,0.38231166,107470.0,107460.0,0.12881092]
[1762158140227,0.38231166,107470.0,107460.0,0.14217092]
[1762158140628,0.38231166,107470.0,107460.0,0.12881092]
[1762158141336,0.74311166,107470.0,107460.0,0.11243092]
[1762158141836,0.74311166,107470.0,107460.0,0.13481092]
[1762158142233,0.74311166,107470.0,107460.0,0.12881092]
[1762158143133,0.38231166,107470.0,107460.0,0.12881092]
[1762158144136,0.37931166,107470.0,107460.0,0.13481092]
[1762158144336,0.38231166,107470.0,107460.0,0.13481092]
[1762158146037,0.38231166,107470.0,107460.0,0.08974092]
[1762158146439,0.49673567,107470.0,107460.0,0.11201092]
[1762158146642,0.38231166,107470.0,107460.0,0.13504092]
[1762158147040,0.38231166,107470.0,107460.0,0.11504092]
[1762158147235,0.38431166,107470.0,107460.0,0.15804092]
[1762158147943,0.38231166,107470.0,107460.0,0.13504092]
[1762158150338,0.38231166,107470.0,107460.0,0.14853092]
[1762158150536,0.38231166,107470.0,107460.0,0.62375493]
[1762158150537,0.36956166,107470.0,107460.0,0.62375493]
[1762158150742,0.36956166,107470.0,107460.0,0.640438]
[1762158151345,0.36956166,107470.0,107460.0,0.626948]
[1762158151346,0.38235166,107470.0,107460.0,0.626948]
[1762158151533,0.38235166,107470.0,107460.0,0.266148]
[1762158151843,0.38235166,107470.0,107460.0,0.15172399]
[1762158152042,0.38235166,107470.0,107460.0,0.12869399]
[1762158152347,0.38235166,107470.0,107460.0,0.11230348]
[1762158152540,0.38235166,107470.0,107460.0,0.09003348]
[1762158152740,0.49677567,107470.0,107460.0,0.09003348]
[1762158152940,0.49677567,107470.0,107460.0,0.11230348]
[1762158153137,0.38235166,107470.0,107460.0,0.11230348]
[1762158153534,0.49677567,107470.0,107460.0,0.09003348]
[1762158154337,0.38235166,107470.0,107460.0,0.09003348]
[1762158156244,0.38235166,107470.0,107460.0,0.02307077]
[1762158157935,0.38235166,107470.0,107460.0,0.12869399]
[1762158159332,0.38235166,107470.0,107460.0,0.15172399]
[1762158161244,0.74315166,107470.0,107460.0,0.15172399]
[1762158161845,0.74315166,107470.0,107460.0,0.12869399]
[1762158162139,0.74315166,107470.0,107460.0,0.06794077]
[1762158162445,0.42155166,107470.0,107460.0,0.06794077]
[1762158162742,0.74299166,107470.0,107460.0,0.06794077]
[1762158163244,0.74299166,107470.0,107460.0,0.04534077]
[1762158163445,0.74299166,107470.0,107460.0,0.02307077]
[1762158164146,0.76709841,107470.0,107460.0,0.02307077]
[1762158164445,0.74299166,107470.0,107460.0,0.02307077]
[1762158166842,0.74299166,107470.0,107460.0,0.04466077]
[1762158167048,0.74299166,107470.0,107460.0,0.06726077]
[1762158167550,0.74299166,107470.0,107460.0,0.04466077]
[1762158169052,0.74299166,107470.0,107460.0,0.02307077]
[1762158172054,0.74299166,107470.0,107460.0,0.04466077]
[1762158172658,0.74299166,107470.0,107460.0,0.02307077]
[1762158174246,0.74299166,107470.0,107460.0,0.06726077]
[1762158174864,0.74299166,107470.0,107460.0,0.02307077]
[1762158175263,0.74299166,107470.0,107460.0,0.06726077]
[1762158175562,0.74299166,107470.0,107460.0,0.04466077]
[1762158175857,0.74299166,107470.0,107460.0,0.02307077]
[1762158176856,0.74299166,107470.0,107460.0,0.04466077]
[1762158177052,0.74299166,107470.0,107460.0,0.02307077]
[1762158177559,0.74299166,107470.0,107460.0,0.06726077]
[1762158179351,0.74299166,107470.0,107460.0,0.02307077]
[1762158180652,0.42155166,107470.0,107460.0,0.19489657]
[1762158180959,0.34754166,107470.0,107460.0,0.67011237]
[1762158181153,0.00309166,107470.0,107460.0,0.67011237]
[1762158181665,0.00309166,107470.0,107460.0,0.76318547]
[1762158182363,0.04628166,107470.0,107460.0,0.44128077]
[1762158182555,0.00309166,107470.0,107460.0,0.76318547]
[1762158182956,0.00309166,107470.0,107460.0,0.99582547]
[1762158183761,0.00309166,107470.0,107460.0,1.31722547]
[1762158184560,0.00309166,107470.0,107460.0,1.43141216]
[1762158185058,0.00309166,107470.0,107460.0,1.26561719]
[1762158185549,0.11476059,107510.0,107490.0,0.00673]
[1762158185754,0.11476059,107510.0,107500.0,0.64688886]
[1762158185755,0.1050431,107510.0,107500.0,0.64688886]
[1762158185955,0.06678142,107510.0,107500.0,0.64688886]
[1762158186555,0.02359142,107510.0,107500.0,0.64688886]
[1762158186861,0.06678142,107510.0,107500.0,0.64688886]
[1762158187159,0.01328,107500.0,107490.0,0.04419]
[1762158187366,0.01328,107500.0,107490.0,0.06459]
[1762158187367,0.96734886,107500.0,107490.0,0.06459]
[1762158187664,0.87660085,107500.0,107490.0,0.06459]
[1762158187852,0.76226142,107500.0,107490.0,0.08719]
[1762158188057,0.87660085,107500.0,107490.0,0.08719]
[1762158188364,0.88160085,107500.0,107490.0,0.02159]
[1762158188558,0.88160085,107500.0,107490.0,0.04419]
[1762158188759,0.88160085,107500.0,107490.0,0.15852943]
[1762158189162,0.76726142,107500.0,107490.0,0.15852943]
[1762158189359,0.40646142,107500.0,107490.0,0.53254943]
[1762158189869,0.40946142,107500.0,107490.0,0.53254943]
[1762158190365,0.40146142,107500.0,107490.0,0.56310596]
[1762158190564,0.40446142,107500.0,107490.0,0.56310596]
[1762158191363,0.37015142,107500.0,107490.0,0.56310596]
[1762158191560,0.04875142,107500.0,107490.0,0.56310596]
[1762158191761,0.0483,107500.0,107490.0,0.56310596]
[1762158191957,0.0747651,107500.0,107490.0,0.56110596]
[1762158192163,0.0886051,107500.0,107490.0,0.56110596]
[1762158192363,0.06514,107500.0,107490.0,0.40499]
[1762158192561,0.0884657,107500.0,107490.0,0.40499]
[1762158194471,0.0884657,107500.0,107490.0,0.54788596]
[1762158196664,0.0884657,107500.0,107490.0,0.56072596]
[1762158196665,0.06514,107500.0,107490.0,0.56072596]
[1762158196864,0.0513,107500.0,107490.0,0.56072596]
[1762158197066,0.006,107500.0,107490.0,0.65377316]
[1762158197469,0.006,107500.0,107490.0,0.56072596]
[1762158197872,0.0513,107500.0,107490.0,0.56072596]
[1762158198566,0.0513,107500.0,107490.0,0.65377306]
[1762158198866,0.006,107500.0,107490.0,0.65377306]
[1762158199567,0.006,107500.0,107490.0,0.56072596]
[1762158199770,0.0513,107500.0,107490.0,0.56072596]
[1762158199970,0.07457737,107500.0,107490.0,0.56072596]
[1762158200864,0.02927737,107500.0,107490.0,0.65377306]
[1762158201675,0.02927737,107500.0,107490.0,0.5108771]
[1762158201872,0.02927737,107500.0,107490.0,0.65377306]
[1762158203475,0.02927737,107500.0,107490.0,0.56072596]
[1762158203671,0.08841737,107500.0,107490.0,0.41783]
[1762158203872,0.08841737,107500.0,107490.0,0.56072596]
[1762158204074,0.44921737,107500.0,107490.0,0.04419]
[1762158204975,0.08841737,107500.0,107490.0,0.04419]
[1762158206469,0.08841737,107500.0,107490.0,0.40499]
[1762158206771,0.08841737,107500.0,107490.0,0.54788596]
[1762158206977,0.07457737,107500.0,107490.0,0.56147596]
[1762158207276,0.02927737,107500.0,107490.0,0.65452316]
[1762158207676,0.006,107500.0,107490.0,0.65452316]
[1762158208175,0.02909826,107500.0,107490.0,0.65452316]
[1762158208870,0.07331826,107500.0,107490.0,0.56147596]
[1762158209775,0.08597826,107500.0,107490.0,0.56147596]
[1762158210470,0.07331826,107500.0,107490.0,0.41858]
[1762158210667,0.006,107500.0,107490.0,0.62832099]
[1762158211075,0.006,107500.0,107490.0,0.48542503]
[1762158211270,0.02916,107500.0,107490.0,0.48542503]
[1762158211470,0.05022,107500.0,107490.0,0.62832099]
[1762158211878,0.06122,107500.0,107490.0,0.62832099]
[1762158212278,0.07388,107500.0,107490.0,0.62832099]
[1762158212773,0.06122,107500.0,107490.0,0.62832099]
[1762158213080,0.43468,107500.0,107490.0,0.11103503]
[1762158213674,0.43368,107500.0,107490.0,0.06684503]
[1762158213874,0.57857596,107500.0,107490.0,0.001]
[1762158214380,0.73297596,107500.0,107490.0,0.001]
[1762158214581,0.93937596,107500.0,107490.0,0.001]
[1762158215183,0.79648,107500.0,107490.0,0.001]
[1762158217984,0.93937596,107500.0,107490.0,0.001]
[1762158218484,0.04422,107480.0,107470.0,0.08859503]
[1762158218788,0.73924,107480.0,107470.0,0.06684503]
[1762158220297,0.73924,107480.0,107470.0,0.08859503]
[1762158220495,0.04622,107480.0,107470.0,0.62871099]
[1762158220793,0.34684,107480.0,107470.0,0.56186596]
[1762158221190,0.38056,107480.0,107470.0,0.56186596]
[1762158221885,0.38056,107480.0,107470.0,0.40538]
[1762158222091,0.38156,107480.0,107470.0,0.40538]
[1762158222993,0.38156,107480.0,107470.0,0.04458]
[1762158225300,0.38152,107480.0,107470.0,0.05844]
[1762158225501,0.38152,107480.0,107470.0,0.04458]
[1762158226096,0.38152,107480.0,107470.0,0.18747596]
[1762158226798,0.38152,107480.0,107470.0,0.04458]
[1762158229698,0.38152,107480.0,107470.0,0.41924]
[1762158230304,0.38152,107480.0,107470.0,0.05844]
[1762158230492,0.38152,107480.0,107470.0,0.41924]
[1762158231192,0.38152,107480.0,107470.0,0.04458]
[1762158231407,0.38152,107480.0,107470.0,0.40538]
[1762158231999,0.3689,107480.0,107470.0,0.56213596]
[1762158232595,0.32456,107480.0,107470.0,0.56213596]
[1762158233001,0.34766,107480.0,107470.0,0.56213596]
[1762158233198,0.3834,107480.0,107470.0,0.56213596]
[1762158233393,0.3834,107480.0,107470.0,0.54827596]
[1762158234202,0.3834,107480.0,107470.0,0.40538]
[1762158237108,0.3834,107480.0,107470.0,0.001]
[1762158237706,0.3834,107480.0,107470.0,0.02263]
[1762158238306,0.3824,107480.0,107470.0,0.03763]
[1762158239107,0.3804,107480.0,107470.0,0.03663]
[1762158239304,0.3824,107480.0,107470.0,0.03963]
[1762158239502,0.3824,107480.0,107470.0,0.06287]
[1762158239707,0.3824,107480.0,107470.0,0.03963]
[1762158240118,0.3824,107480.0,107470.0,0.018]
[1762158240318,0.05884,107470.0,107460.0,0.47562975]
[1762158241719,0.06984,107470.0,107460.0,0.47562975]
[1762158242213,0.06984,107470.0,107460.0,0.11482975]
[1762158242414,0.07184,107470.0,107460.0,0.23022705]
[1762158242614,0.07184,107470.0,107460.0,0.70542435]
[1762158242813,0.0361,107470.0,107460.0,0.71901435]
[1762158243115,0.05922,107470.0,107460.0,0.71901435]
[1762158243516,0.05922,107470.0,107460.0,0.81208755]
[1762158243719,0.05922,107470.0,107460.0,0.71901435]
[1762158246412,0.07184,107470.0,107460.0,0.6046006]
[1762158246612,0.07184,107470.0,107460.0,0.52412162]
[1762158247315,0.07184,107470.0,107460.0,0.16332162]
[1762158248608,0.07184,107470.0,107460.0,0.04894077]
[1762158248816,0.07184,107470.0,107460.0,0.02570077]
[1762158249012,0.18622085,107470.0,107460.0,0.07095975]